fUST/lending_fUST_20240121
["ID","MTS","AMOUNT","RATE_DAILY","PERIOD"]
[312319462,1705771848367,-286.49158774,0.00041095,31]
[312319463,1705771848376,-1009.53,0.00041095,7]
[312319464,1705771848386,-500.0,0.00041095,31]
[312319465,1705771848395,-525.93641845,0.00041095,31]
[312319466,1705771848405,-500.0,0.00041095,31]
[312319467,1705771848414,-510.20441833,0.00041095,31]
[312319468,1705771848424,-1684.52,0.00041095,31]
[312319469,1705771848436,-8470.71,0.00041095,31]
[312319470,1705771848445,-500.0,0.00041095,31]
[312319471,1705771848455,-500.0,0.00041095,31]
[312319472,1705771848464,-500.0,0.00041095,31]
[312319473,1705771848474,-500.0,0.00041095,31]
[312319474,1705771848483,-500.0,0.00041095,31]
[312319475,1705771848492,-2358.56,0.00041095,31]
[312319476,1705771848501,-500.0,0.00041095,31]
[312319477,1705771848514,-500.0,0.00041095,31]
[312319478,1705771848523,-500.0,0.00041095,31]
[312319479,1705771848532,-500.0,0.00041095,31]
[312319480,1705771848542,-500.84168177,0.00041095,31]
[312319481,1705771848552,-500.0,0.00041095,31]
[312319482,1705771848564,-500.0,0.00041095,31]
[312319483,1705771848573,-1730.17,0.00041095,31]
[312319484,1705771848583,-500.0,0.00041095,31]
[312319485,1705771848593,-500.0,0.00041095,31]
[312319486,1705771848604,-500.0,0.00041095,31]
[312319487,1705771848614,-500.0,0.00041095,31]
[312319488,1705771848624,-500.0,0.00041095,31]
[312319489,1705771848634,-429.4066776,0.00041095,31]
[312319490,1705771848645,-500.0,0.00041095,31]
[312319491,1705771848655,-500.0,0.00041095,31]
[312319492,1705771848665,-500.0,0.00041095,31]
[312319493,1705771848674,-500.0,0.00041095,31]
[312319494,1705771848683,-500.0,0.00041095,31]
[312319495,1705771848693,-500.0,0.00041095,31]
[312319496,1705771848702,-500.0,0.00041095,31]
[312319497,1705771848711,-1140.46,0.00041095,31]
[312319498,1705771848720,-500.0,0.00041095,31]
[312319499,1705771848729,-502.85254966,0.00041095,31]
[312319500,1705771848738,-500.0,0.00041095,31]
[312319501,1705771848748,-500.0,0.00041095,31]
[312319502,1705771848757,-500.0,0.00041095,31]
[312319503,1705771848767,-500.0,0.00041095,31]
[312319504,1705771848776,-500.0,0.00041095,31]
[312319505,1705771848785,-534.13,0.00041095,31]
[312319506,1705771848794,-500.0,0.00041095,31]
[312319507,1705771848804,-531.82829894,0.00041095,31]
[312319508,1705771848814,-500.0,0.00041095,31]
[312319509,1705771848823,-1000.0,0.00041095,2]
[312319510,1705771848833,-500.0,0.00041095,31]
[312319511,1705771848843,-500.0,0.00041095,31]
[312319512,1705771848852,-500.0,0.00041095,31]
[312319513,1705771848861,-585.23056528,0.00041095,31]
[312319514,1705771848871,-500.0,0.00041095,31]
[312319515,1705771848881,-500.0,0.00041095,31]
[312319516,1705771848980,-500.0,0.00041095,31]
[312319517,1705771848989,-168.28229519,0.00041095,31]
[312319518,1705771848998,-500.0,0.00041095,31]
[312319519,1705771849007,-500.0,0.00041095,31]
[312319520,1705771849016,-899.33,0.00041095,31]
[312319521,1705771849026,-500.0,0.00041095,31]
[312319522,1705771849035,-1436.63,0.00041095,31]
[312319523,1705771849044,-500.0,0.00041095,31]
[312319524,1705771849054,-1738.97,0.00041095,31]
[312319525,1705771849063,-624.18017065,0.00041095,31]
[312319526,1705771849072,-500.0,0.00041095,7]
[312319527,1705771849081,-1526.22,0.00041095,31]
[312319528,1705771849090,-500.0,0.00041095,31]
[312319529,1705771849100,-685.46,0.00041095,31]
[312319530,1705771849109,-500.0,0.00041095,31]
[312319531,1705771849118,-500.0,0.00041095,31]
[312319532,1705771849127,-500.0,0.00041095,31]
[312319533,1705771849136,-500.0,0.00041095,31]
[312319534,1705771849145,-1202.86,0.00041095,31]
[312319535,1705771849155,-1000.0,0.00041095,2]
[312319536,1705771849164,-1000.0,0.00041095,2]
[312319537,1705771849173,-1000.0,0.00041095,2]
[312319538,1705771849182,-500.0,0.00041095,31]
[312319539,1705771849191,-1000.0,0.00041095,2]
[312319540,1705771849200,-1000.0,0.00041095,2]
[312319541,1705771849209,-1000.0,0.00041095,2]
[312319542,1705771849218,-1000.0,0.00041095,2]
[312319543,1705771849227,-1000.0,0.00041095,2]
[312319544,1705771849236,-1000.0,0.00041095,2]
[312319545,1705771849245,-1000.0,0.00041095,2]
[312319546,1705771849254,-1000.0,0.00041095,2]
[312319547,1705771849263,-1000.0,0.00041095,2]
[312319548,1705771849272,-1000.0,0.00041095,2]
[312319549,1705771849281,-1000.0,0.00041095,2]
[312319550,1705771849291,-1000.0,0.00041095,2]
[312319551,1705771849300,-1000.0,0.00041095,2]
[312319552,1705771849309,-1000.0,0.00041095,2]
[312319553,1705771849318,-188.15176325,0.00041095,2]
[312319554,1705771849327,-500.0,0.00041095,31]
[312319555,1705771849336,-850.85,0.00041095,31]
[312319556,1705771849345,-500.0,0.00041095,31]
[312319557,1705771849355,-500.0,0.00041095,31]
[312319558,1705771849364,-500.0,0.00041095,31]
[312319559,1705771849373,-524.05,0.00041095,31]
[312319560,1705771849382,-500.0,0.00041095,31]
[312319561,1705771849392,-151.0,0.00041095,2]
[312319562,1705771849400,-1002.675451,0.00041095,2]
[312319563,1705771849410,-1002.675451,0.00041095,2]
[312319564,1705771849419,-190.783797,0.00041096,2]
[312319565,1705771849428,-314.87795,0.00041096,2]
[312319566,1705771849437,-187.13,0.000411,14]
[312319567,1705771849447,-187.13311439,0.000411,14]
[312319568,1705771849456,-187.13311439,0.000411,14]
[312319569,1705771849465,-187.13311439,0.000411,14]
[312319570,1705771849474,-187.13,0.000411,14]
[312319571,1705771849484,-162.68,0.000411,14]
[312319572,1705771849493,-322.74820093,0.00041162,11]
[312319573,1705771849502,-2574.0,0.00041315,14]
[312319574,1705771849511,-275.40943256,0.00041367,4]
[312319575,1705771849520,-500.0,0.00041369,31]
[312319576,1705771849529,-500.0,0.00041369,31]
[312319577,1705771849538,-500.0,0.00041369,7]
[312319578,1705771849548,-500.0,0.00041369,31]
[312319579,1705771849558,-500.0,0.00041369,31]
[312319580,1705771849568,-500.0,0.00041369,7]
[312319581,1705771849577,-500.0,0.00041369,31]
[312319582,1705771849586,-500.0,0.00041369,31]
[312319583,1705771849595,-1200.76,0.00041369,31]
[312319584,1705771849606,-500.0,0.00041369,31]
[312319585,1705771849615,-500.0,0.00041369,31]
[312319586,1705771849625,-500.0,0.00041369,31]
[312319587,1705771849634,-500.0,0.00041369,31]
[312319588,1705771849644,-500.0,0.00041369,31]
[312319589,1705771849653,-500.0,0.00041369,31]
[312319590,1705771849662,-405.67877792,0.00041369,31]
[312319591,1705771849672,-408.86608001,0.00041369,31]
[312319592,1705771849681,-500.0,0.00041369,31]
[312319593,1705771849690,-534.09772747,0.00041369,31]
[312319594,1705771849700,-384.88890547,0.00041369,31]
[312319595,1705771849709,-500.0,0.00041369,31]
[312319596,1705771849719,-471.86508435,0.00041369,31]
[312319597,1705771849728,-500.0,0.00041369,31]
[312319598,1705771849737,-386.2826957,0.00041369,31]
[312319599,1705771849746,-747.09,0.00041369,31]
[312319600,1705771849755,-500.0,0.00041369,31]
[312319601,1705771849765,-500.0,0.00041369,31]
[312319602,1705771849774,-500.0,0.00041369,31]
[312319603,1705771849783,-289.22019955,0.00041369,31]
[312319604,1705771849792,-169.69381302,0.00041369,31]
[312319605,1705771849801,-500.0,0.00041369,31]
[312319606,1705771849811,-667.38,0.00041369,31]
[312319607,1705771849820,-500.0,0.00041369,31]
[312319608,1705771849829,-500.0,0.00041369,31]
[312319609,1705771849839,-635.84972635,0.00041369,31]
[312319610,1705771849848,-500.0,0.00041369,31]
[312319611,1705771849857,-521.74,0.00041369,31]
[312319612,1705771849867,-500.0,0.00041369,31]
[312319613,1705771849876,-500.0,0.00041369,31]
[312319614,1705771849885,-500.0,0.00041369,31]
[312319615,1705771849895,-500.0,0.00041369,31]
[312319616,1705771849904,-500.42422875,0.00041369,31]
[312319617,1705771849913,-553.8014539,0.00041369,31]
[312319618,1705771849923,-500.0,0.00041369,31]
[312319619,1705771849932,-500.0,0.00041369,31]
[312319620,1705771849941,-581.38596885,0.00041369,31]
[312319621,1705771849950,-1000.0,0.00041369,2]
[312319622,1705771849958,-500.0,0.00041369,31]
[312319623,1705771849967,-596.81568235,0.00041369,31]
[312319624,1705771849976,-500.0,0.00041369,31]
[312319625,1705771849985,-285.35244185,0.00041369,14]
[312319626,1705771849994,-618.39,0.00041369,31]
[312319627,1705771850003,-500.0,0.00041369,31]
[312319628,1705771850012,-721.31,0.00041369,31]
[312319629,1705771850021,-500.0,0.00041369,31]
[312319630,1705771850030,-500.0,0.00041369,31]
[312319631,1705771850038,-500.0,0.00041369,31]
[312319632,1705771850047,-500.0,0.00041369,31]
[312319633,1705771850057,-500.0,0.00041369,31]
[312319634,1705771850067,-407.35585808,0.00041369,31]
[312319635,1705771850076,-284.21805672,0.00041369,31]
[312319636,1705771850085,-500.0,0.00041369,31]
[312319637,1705771850094,-583.96,0.00041369,31]
[312319638,1705771850104,-500.0,0.00041369,31]
[312319639,1705771850116,-500.0,0.00041369,31]
[312319640,1705771850125,-500.0,0.00041369,31]
[312319641,1705771850134,-500.0,0.00041369,31]
[312319642,1705771850144,-500.0,0.00041369,31]
[312319643,1705771850153,-500.0,0.00041369,31]
[312319644,1705771850163,-500.0,0.00041369,31]
[312319645,1705771850172,-500.0,0.00041369,14]
[312319646,1705771850182,-708.55,0.00041369,31]
[312319647,1705771850192,-500.0,0.00041369,31]
[312319648,1705771850201,-500.95328042,0.00041369,31]
[312319649,1705771850211,-500.0,0.00041369,31]
[312319650,1705771850220,-500.0,0.00041369,31]
[312319651,1705771850230,-500.0,0.00041369,31]
[312319652,1705771850239,-597.34938627,0.00041369,31]
[312319653,1705771850248,-607.42,0.00041369,31]
[312319654,1705771850258,-500.0,0.00041369,31]
[312319655,1705771850267,-500.0,0.00041369,31]
[312319656,1705771850276,-200.0,0.00041369,31]
[312319657,1705771850286,-500.0,0.00041369,31]
[312319658,1705771850296,-687.89,0.00041369,31]
[312319659,1705771850305,-500.0,0.00041369,7]
[312319660,1705771850314,-500.0,0.00041369,31]
[312319661,1705771850323,-500.0,0.00041369,31]
[312319662,1705771850332,-500.0,0.00041369,31]
[312319663,1705771850341,-688.15,0.00041369,31]
[312319664,1705771850350,-500.0,0.00041369,31]
[312319665,1705771850359,-500.0,0.00041369,31]
[312319666,1705771850368,-500.0,0.00041369,31]
[312319667,1705771850377,-500.0,0.00041369,31]
[312319668,1705771850387,-544.73,0.00041369,31]
[312319669,1705771850396,-500.0,0.00041369,31]
[312319670,1705771850405,-500.0,0.00041369,31]
[312319671,1705771850414,-1391.5,0.00041369,31]
[312319672,1705771850423,-385.99339565,0.00041369,31]
[312319673,1705771850432,-500.0,0.00041369,31]
[312319674,1705771850442,-1013.09196316,0.00041369,2]
[312319675,1705771850451,-500.0,0.00041369,31]
[312319676,1705771850460,-430.57721622,0.00041369,31]
[312319677,1705771850469,-500.0,0.00041369,31]
[312319678,1705771850479,-578.09297535,0.00041369,31]
[312319679,1705771850488,-500.0,0.00041369,31]
[312319680,1705771850497,-310.85814818,0.00041369,31]
[312319681,1705771850506,-523.29229734,0.00041369,31]
[312319682,1705771850516,-500.0,0.00041369,31]
[312319683,1705771850525,-500.0,0.00041369,31]
[312319684,1705771850534,-500.0,0.00041369,31]
[312319685,1705771850544,-520.46,0.00041369,31]
[312319686,1705771850554,-500.0,0.00041369,31]
[312319687,1705771850564,-500.0,0.00041369,31]
[312319688,1705771850574,-500.0,0.00041369,31]
[312319689,1705771850583,-500.0,0.00041369,31]
[312319690,1705771850592,-500.0,0.00041369,31]
[312319691,1705771850602,-500.0,0.00041369,31]
[312319692,1705771850611,-500.0,0.00041369,31]
[312319693,1705771850621,-500.0,0.00041369,31]
[312319694,1705771850630,-500.0,0.00041369,31]
[312319695,1705771850640,-568.38,0.00041369,31]
[312319696,1705771850650,-204.48495591,0.00041369,31]
[312319697,1705771850659,-500.0,0.00041369,31]
[312319698,1705771850668,-500.0,0.00041369,31]
[312319699,1705771850678,-500.0,0.00041369,31]
[312319700,1705771850687,-500.0,0.00041369,31]
[312319701,1705771850696,-575.79509815,0.00041369,31]
[312319702,1705771850705,-500.0,0.00041369,31]
[312319703,1705771850715,-500.0,0.00041369,31]
[312319704,1705771850724,-500.0,0.00041369,31]
[312319705,1705771850733,-500.0,0.00041369,31]
[312319706,1705771850742,-500.0,0.00041369,31]
[312319707,1705771850752,-514.19775012,0.00041369,31]
[312319708,1705771850761,-704.37,0.00041369,31]
[312319709,1705771850857,-500.0,0.00041369,31]
[312319710,1705771850868,-500.0,0.00041369,31]
[312319711,1705771850878,-1000.0,0.00041369,2]
[312319712,1705771850887,-150.0,0.00041369,31]
[312319713,1705771850896,-500.0,0.00041369,31]
[312319714,1705771850905,-500.0,0.00041369,31]
[312319715,1705771850914,-500.0,0.00041369,31]
[312319716,1705771850923,-500.0,0.00041369,31]
[312319717,1705771850933,-503.80529713,0.00041369,31]
[312319718,1705771850942,-500.0,0.00041369,31]
[312319719,1705771850951,-500.0,0.00041369,31]
[312319720,1705771850960,-707.0,0.00041369,31]
[312319721,1705771850969,-500.0,0.00041369,31]
[312319722,1705771850979,-500.0,0.00041369,31]
[312319723,1705771850988,-501.35243031,0.00041369,31]
[312319724,1705771850998,-500.0,0.00041369,31]
[312319725,1705771851007,-500.0,0.00041369,31]
[312319726,1705771851017,-532.23996379,0.00041369,31]
[312319727,1705771851027,-333.28170327,0.00041369,31]
[312319728,1705771851036,-709.09,0.00041369,31]
[312319729,1705771851046,-500.0,0.00041369,31]
[312319730,1705771851056,-711.36,0.00041369,31]
[312319731,1705771851065,-745.04,0.00041369,31]
[312319732,1705771851075,-500.0,0.00041369,31]
[312319733,1705771851084,-500.0,0.00041369,31]
[312319734,1705771851094,-500.0,0.00041369,31]
[312319735,1705771851103,-500.0,0.00041369,31]
[312319736,1705771851113,-500.0,0.00041369,31]
[312319737,1705771851122,-500.0,0.00041369,31]
[312319738,1705771851131,-500.0,0.00041369,31]
[312319739,1705771851141,-500.0,0.00041369,31]
[312319740,1705771851151,-10000.0,0.00041369,10]
[312319741,1705771851160,-500.0,0.00041369,31]
[312319742,1705771851170,-500.0,0.00041369,31]
[312319743,1705771851179,-499.79256159,0.00041369,31]
[312319744,1705771851189,-500.0,0.00041369,31]
[312319745,1705771851198,-695.1,0.00041369,31]
[312319746,1705771851208,-500.0,0.00041369,31]
[312319747,1705771851218,-500.0,0.00041369,31]
[312319748,1705771851228,-500.0,0.00041369,31]
[312319749,1705771851237,-500.0,0.00041369,31]
[312319750,1705771851247,-593.77,0.00041369,31]
[312319751,1705771851256,-500.0,0.00041369,31]
[312319752,1705771851266,-544.34,0.00041369,31]
[312319753,1705771851275,-500.0,0.00041369,31]
[312319754,1705771851285,-1201.37,0.00041369,31]
[312319755,1705771851294,-503.57420983,0.00041369,31]
[312319756,1705771851305,-500.0,0.00041369,31]
[312319757,1705771851315,-500.0,0.00041369,31]
[312319758,1705771851324,-500.0,0.00041369,31]
[312319759,1705771851334,-501.33532026,0.00041369,31]
[312319760,1705771851346,-500.0,0.00041369,31]
[312319761,1705771851356,-500.0,0.00041369,31]
[312319762,1705771851365,-500.0,0.00041369,31]
[312319763,1705771851376,-500.0,0.00041369,31]
[312319764,1705771851385,-500.0,0.00041369,31]
[312319765,1705771851394,-500.0,0.00041369,31]
[312319766,1705771851404,-1002.73897097,0.00041369,5]
[312319767,1705771851414,-500.0,0.00041369,31]
[312319768,1705771851424,-502.87843745,0.00041369,7]
[312319769,1705771851433,-500.0,0.00041369,31]
[312319770,1705771851443,-500.0,0.00041369,31]
[312319771,1705771851452,-928.99,0.00041369,31]
[312319772,1705771851462,-500.0,0.00041369,31]
[312319773,1705771851471,-500.0,0.00041369,31]
[312319774,1705771851481,-300.24265173,0.00041369,31]
[312319775,1705771851490,-704.85,0.00041369,31]
[312319776,1705771851500,-630.53353871,0.00041369,31]
[312319777,1705771851509,-2382.64,0.00041369,31]
[312319778,1705771851519,-500.0,0.00041369,31]
[312319779,1705771851529,-379.32935967,0.00041369,31]
[312319780,1705771851539,-500.0,0.00041369,31]
[312319781,1705771851551,-500.0,0.00041369,31]
[312319782,1705771851561,-500.0,0.00041369,31]
[312319783,1705771851571,-500.0,0.00041369,31]
[312319784,1705771851581,-500.0,0.00041369,31]
[312319785,1705771851591,-500.0,0.00041369,31]
[312319786,1705771851600,-500.0,0.00041369,31]
[312319787,1705771851610,-3230.88,0.00041369,31]
[312319788,1705771851619,-1689.43,0.00041369,31]
[312319789,1705771851629,-500.0,0.00041369,31]
[312319790,1705771851638,-1000.0,0.00041369,2]
[312319791,1705771851648,-500.0,0.00041369,31]
[312319792,1705771851658,-500.0,0.00041369,31]
[312319793,1705771851668,-500.0,0.00041369,31]
[312319794,1705771851678,-502.58537114,0.00041369,31]
[312319795,1705771851688,-500.0,0.00041369,31]
[312319796,1705771851698,-500.0,0.00041369,31]
[312319797,1705771851708,-500.0,0.00041369,31]
[312319798,1705771851717,-500.0,0.00041369,31]
[312319799,1705771851726,-500.0,0.00041369,31]
[312319800,1705771851736,-500.0,0.00041369,31]
[312319801,1705771851745,-500.0,0.00041369,31]
[312319802,1705771851755,-516.97484278,0.00041369,31]
[312319803,1705771851764,-500.0,0.00041369,31]
[312319804,1705771851774,-500.0,0.00041369,2]
[312319805,1705771851783,-500.0,0.00041369,31]
[312319806,1705771851792,-500.0,0.00041369,31]
[312319807,1705771851802,-500.0,0.00041369,31]
[312319808,1705771851811,-500.0,0.00041369,31]
[312319809,1705771851821,-500.0,0.00041369,31]
[312319810,1705771851831,-1089.14,0.00041369,31]
[312319811,1705771851840,-500.0,0.00041369,31]
[312319812,1705771851850,-500.0,0.00041369,31]
[312319813,1705771851859,-545.22843941,0.00041369,31]
[312319814,1705771851869,-500.0,0.00041369,31]
[312319815,1705771851880,-430.14912554,0.00041369,31]
[312319816,1705771851889,-220.0,0.00041369,2]
[312319817,1705771851898,-500.0,0.00041369,31]
[312319818,1705771851908,-500.0,0.00041369,31]
[312319819,1705771851917,-500.0,0.00041369,31]
[312319820,1705771851927,-500.0,0.00041369,20]
[312319821,1705771851937,-548.69603639,0.00041369,31]
[312319822,1705771851946,-500.0,0.00041369,31]
[312319823,1705771851956,-820.67,0.00041369,31]
[312319824,1705771851966,-848.28,0.00041369,31]
[312319825,1705771851975,-332.89932499,0.00041369,31]
[312319826,1705771851984,-1393.43,0.00041369,31]
[312319827,1705771851994,-500.0,0.00041369,31]
[312319828,1705771852004,-1633.61,0.00041369,31]
[312319829,1705771852013,-500.0,0.00041369,31]
[312319830,1705771852023,-500.0,0.00041369,31]
[312319831,1705771852033,-500.0,0.00041369,31]
[312319832,1705771852043,-678.24,0.00041369,31]
[312319833,1705771852054,-774.42,0.00041369,31]
[312319834,1705771852063,-500.0,0.00041369,31]
[312319835,1705771852072,-500.0,0.00041369,31]
[312319836,1705771852081,-500.0,0.00041369,31]
[312319837,1705771852090,-500.0,0.00041369,31]
[312319838,1705771852099,-738.56,0.00041369,31]
[312319839,1705771852108,-622.01,0.00041369,31]
[312319840,1705771852116,-500.0,0.00041369,31]
[312319841,1705771852128,-2637.91,0.00041369,31]
[312319842,1705771852137,-2091.45,0.00041369,31]
[312319843,1705771852146,-500.0,0.00041369,31]
[312319844,1705771852156,-500.0,0.00041369,31]
[312319845,1705771852165,-501.45059833,0.00041369,31]
[312319846,1705771852174,-731.71,0.00041369,31]
[312319847,1705771852183,-5731.31,0.00041369,31]
[312319848,1705771852192,-30210.12,0.00041369,14]
[312319849,1705771852201,-500.0,0.00041369,31]
[312319850,1705771852211,-500.0,0.00041369,31]
[312319851,1705771852220,-500.0,0.00041369,31]
[312319852,1705771852229,-500.0,0.00041369,31]
[312319853,1705771852239,-1111.57,0.00041369,31]
[312319854,1705771852249,-500.0,0.00041369,31]
[312319855,1705771852263,-500.0,0.00041369,31]
[312319856,1705771852273,-500.0,0.00041369,31]
[312319857,1705771852281,-500.0,0.00041369,31]
[312319858,1705771852290,-2232.2,0.00041369,31]
[312319859,1705771852300,-500.0,0.00041369,31]
[312319860,1705771852309,-922.45,0.00041369,31]
[312319861,1705771852318,-1489.44,0.00041369,31]
[312319862,1705771852328,-500.0,0.00041369,31]
[312319863,1705771852337,-531.35,0.00041369,31]
[312319864,1705771852346,-503.56316298,0.00041369,31]
[312319865,1705771852355,-500.0,0.00041369,31]
[312319866,1705771852364,-500.0,0.00041369,31]
[312319867,1705771852374,-10043.09,0.00041369,31]
[312319868,1705771852383,-500.0,0.00041369,31]
[312319869,1705771852392,-500.0,0.00041369,31]
[312319870,1705771852401,-500.0,0.00041369,31]
[312319871,1705771852410,-1427.62,0.00041369,31]
[312319872,1705771852419,-504.67497842,0.00041369,31]
[312319873,1705771852431,-500.0,0.00041369,31]
[312319874,1705771852440,-3336.41,0.00041369,31]
[312319875,1705771852450,-500.0,0.00041369,31]
[312319876,1705771852459,-500.0,0.00041369,31]
[312319877,1705771852468,-500.0,0.00041369,31]
[312319878,1705771852477,-500.0,0.00041369,31]
[312319879,1705771852486,-500.0,0.00041369,31]
[312319880,1705771852495,-500.0,0.00041369,31]
[312319881,1705771852504,-195.47190972,0.00041369,31]
[312319882,1705771852513,-500.0,0.00041369,31]
[312319883,1705771852523,-16367.75,0.00041369,31]
[312319884,1705771852532,-500.0,0.00041369,31]
[312319885,1705771852623,-500.0,0.00041369,31]
[312319886,1705771852635,-500.0,0.00041369,31]
[312319887,1705771852646,-866.48,0.00041369,31]
[312319888,1705771852655,-1235.66,0.00041369,31]
[312319889,1705771852665,-306.3137,0.00041369,31]
[312319890,1705771852674,-458.37323577,0.00041369,31]
[312319891,1705771852683,-8056.49,0.00041369,31]
[312319892,1705771852692,-500.0,0.00041369,31]
[312319893,1705771852701,-500.0,0.00041369,31]
[312319894,1705771852710,-500.0,0.00041369,31]
[312319895,1705771852719,-500.0,0.00041369,31]
[312319896,1705771852729,-500.0,0.00041369,31]
[312319897,1705771852739,-500.0,0.00041369,31]
[312319898,1705771852748,-500.0,0.00041369,31]
[312319899,1705771852757,-500.0,0.00041369,31]
[312319900,1705771852766,-500.0,0.00041369,31]
[312319901,1705771852775,-6257.57,0.00041369,31]
[312319902,1705771852786,-1009.53,0.00041369,7]
[312319903,1705771852795,-500.64865304,0.00041369,31]
[312319904,1705771852804,-1684.52,0.00041369,31]
[312319905,1705771852813,-8470.71,0.00041369,31]
[312319906,1705771852823,-500.0,0.00041369,31]
[312319907,1705771852833,-500.0,0.00041369,31]
[312319908,1705771852842,-500.0,0.00041369,31]
[312319909,1705771852852,-2358.56,0.00041369,31]
[312319910,1705771852862,-500.0,0.00041369,31]
[312319911,1705771852871,-500.0,0.00041369,31]
[312319912,1705771852880,-500.0,0.00041369,31]
[312319913,1705771852889,-512.72055513,0.00041369,31]
[312319914,1705771852898,-1730.17,0.00041369,31]
[312319915,1705771852907,-500.0,0.00041369,31]
[312319916,1705771852917,-500.0,0.00041369,31]
[312319917,1705771852926,-505.55021429,0.00041369,31]
[312319918,1705771852935,-500.0,0.00041369,31]
[312319919,1705771852944,-500.0,0.00041369,31]
[312319920,1705771852953,-515.55979406,0.00041369,31]
[312319921,1705771852962,-500.0,0.00041369,31]
[312319922,1705771852971,-500.0,0.00041369,31]
[312319923,1705771852980,-500.0,0.00041369,31]
[312319924,1705771852990,-349.89304428,0.00041369,31]
[312319925,1705771852999,-1140.46,0.00041369,31]
[312319926,1705771853008,-199.08796676,0.00041369,31]
[312319927,1705771853017,-500.0,0.00041369,31]
[312319928,1705771853026,-533.45302652,0.00041369,31]
[312319929,1705771853035,-500.0,0.00041369,31]
[312319930,1705771853044,-500.0,0.00041369,31]
[312319931,1705771853053,-500.0,0.00041369,31]
[312319932,1705771853061,-534.13,0.00041369,31]
[312319933,1705771853071,-500.0,0.00041369,31]
[312319934,1705771853080,-500.0,0.00041369,31]
[312319935,1705771853089,-1000.0,0.00041369,2]
[312319936,1705771853098,-500.0,0.00041369,31]
[312319937,1705771853109,-500.0,0.00041369,31]
[312319938,1705771853118,-500.0,0.00041369,31]
[312319939,1705771853127,-500.0,0.00041369,31]
[312319940,1705771853136,-500.0,0.00041369,31]
[312319941,1705771853145,-500.0,0.00041369,31]
[312319942,1705771853154,-500.0,0.00041369,31]
[312319943,1705771853163,-899.33,0.00041369,31]
[312319944,1705771853173,-603.40840649,0.00041369,31]
[312319945,1705771853182,-1436.63,0.00041369,31]
[312319946,1705771853191,-500.0,0.00041369,31]
[312319947,1705771853200,-1738.97,0.00041369,31]
[312319948,1705771853209,-500.0,0.00041369,7]
[312319949,1705771853218,-1526.22,0.00041369,31]
[312319950,1705771853227,-500.0,0.00041369,31]
[312319951,1705771853236,-685.46,0.00041369,31]
[312319952,1705771853244,-500.0,0.00041369,31]
[312319953,1705771853253,-500.0,0.00041369,31]
[312319954,1705771853263,-500.0,0.00041369,31]
[312319955,1705771853272,-500.0,0.00041369,31]
[312319956,1705771853281,-1202.86,0.00041369,31]
[312319957,1705771853290,-500.0,0.00041369,31]
[312319958,1705771853299,-500.0,0.00041369,31]
[312319959,1705771853308,-500.0,0.00041369,31]
[312319960,1705771853318,-850.85,0.00041369,31]
[312319961,1705771853327,-500.0,0.00041369,31]